[Event "Titled Tuesday Blitz November 01 Early 2022"]
[White "Fernandez Hernandez, Gerardo"]
[Black "Vasques, Antonio Pedro Freixial"]
[WhiteFideId "2207400"]
[BlackFideId "1908332"]
[WhiteElo "2243"]
[BlackElo "2243"]
[Result "0-1"]
[Round "11"]
[TimeControl "180+1"]
[Date "2022.11.02"]
[WhiteClock "0:00:03"]
[BlackClock "0:00:14"]

1. e4 {[%clk 0:03:00]}  c5 {[%clk 0:02:53]} 2. d3 {[%clk 0:03:00]}  Nc6 {[%clk 0:02:43]} 3. g3 {[%clk 0:03:00]}  Nf6 {[%clk 0:02:43]} 4. Bg2 {[%clk 0:03:01]}  d5 {[%clk 0:02:43]} 5. Nd2 {[%clk 0:02:56]}  Bg4 {[%clk 0:02:40]} 6. Ngf3 {[%clk 0:02:51]}  e6 {[%clk 0:02:40]} 7. h3 {[%clk 0:02:51]}  Bh5 {[%clk 0:02:40]} 8. O-O {[%clk 0:02:49]}  Qc7 {[%clk 0:02:39]} 9. c3 {[%clk 0:02:33]}  Be7 {[%clk 0:02:31]} 10. Qe2 {[%clk 0:02:24]}  O-O {[%clk 0:02:25]} 11. g4 {[%clk 0:02:09]}  Bg6 {[%clk 0:02:19]} 12. Nh4 {[%clk 0:02:09]}  dxe4 {[%clk 0:02:17]} 13. Nxg6 {[%clk 0:02:04]}  hxg6 {[%clk 0:02:18]} 14. dxe4 {[%clk 0:02:04]}  Rfd8 {[%clk 0:02:11]} 15. Nc4 {[%clk 0:01:59]}  b5 {[%clk 0:02:06]} 16. Ne3 {[%clk 0:01:54]}  c4 {[%clk 0:02:05]} 17. f4 {[%clk 0:01:49]}  Bc5 {[%clk 0:02:02]} 18. e5 {[%clk 0:01:46]}  Nd5 {[%clk 0:02:00]} 19. Kh1 {[%clk 0:01:46]}  Nce7 {[%clk 0:01:58]} 20. Nc2 {[%clk 0:01:40]}  a5 {[%clk 0:01:41]} 21. Bd2 {[%clk 0:01:32]}  Rac8 {[%clk 0:01:35]} 22. Rae1 {[%clk 0:01:25]}  Bb6 {[%clk 0:01:22]} 23. Rd1 {[%clk 0:01:02]}  Qc5 {[%clk 0:00:59]} 24. Nd4 {[%clk 0:00:58]}  b4 {[%clk 0:00:57]} 25. Nf3 {[%clk 0:00:44]}  Ne3 {[%clk 0:00:42]} 26. Bxe3 {[%clk 0:00:44]}  Qxe3 {[%clk 0:00:43]} 27. Qxe3 {[%clk 0:00:42]}  Bxe3 {[%clk 0:00:43]} 28. Nd4 {[%clk 0:00:34]}  Bxd4 {[%clk 0:00:20]} 29. Rxd4 {[%clk 0:00:34]}  Rxd4 {[%clk 0:00:20]} 30. cxd4 {[%clk 0:00:35]}  c3 {[%clk 0:00:20]} 31. bxc3 {[%clk 0:00:31]}  Rxc3 {[%clk 0:00:21]} 32. Rd1 {[%clk 0:00:24]}  Nd5 {[%clk 0:00:20]} 33. Bxd5 {[%clk 0:00:23]}  exd5 {[%clk 0:00:21]} 34. Kg2 {[%clk 0:00:20]}  Rc2+ {[%clk 0:00:21]} 35. Kf3 {[%clk 0:00:20]}  Rxa2 {[%clk 0:00:22]} 36. f5 {[%clk 0:00:19]}  Ra3+ {[%clk 0:00:21]} 37. Kf4 {[%clk 0:00:18]}  gxf5 {[%clk 0:00:18]} 38. gxf5 {[%clk 0:00:16]}  Rxh3 {[%clk 0:00:19]} 39. e6 {[%clk 0:00:17]}  Rh4+ {[%clk 0:00:18]} 40. Ke5 {[%clk 0:00:17]}  Re4+ {[%clk 0:00:18]} 41. Kxd5 {[%clk 0:00:16]}  Re2 {[%clk 0:00:18]} 42. Ra1 {[%clk 0:00:11]}  fxe6+ {[%clk 0:00:18]} 43. fxe6 {[%clk 0:00:11]}  b3 {[%clk 0:00:18]} 44. Rxa5 {[%clk 0:00:10]}  b2 {[%clk 0:00:18]} 45. Rb5 {[%clk 0:00:10]}  g5 {[%clk 0:00:18]} 46. Kd6 {[%clk 0:00:09]}  g4 {[%clk 0:00:19]} 47. Kd7 {[%clk 0:00:05]}  g3 {[%clk 0:00:14]} 48. e7 {[%clk 0:00:06]}  g2 {[%clk 0:00:14]} 49. Rb8+ {[%clk 0:00:04]}  Kh7 {[%clk 0:00:13]} 50. e8=Q {[%clk 0:00:02]}  Rxe8 {[%clk 0:00:13]} 51. Kxe8 {[%clk 0:00:02]}  g1=Q {[%clk 0:00:13]} 52. Rxb2 {[%clk 0:00:03]}  Qe3+ {[%clk 0:00:13]} 53. Kd7 {[%clk 0:00:01]}  Qxd4+ {[%clk 0:00:13]} 54. Ke7 {[%clk 0:00:02]}  Qxb2 {[%clk 0:00:14]} 55. Ke6 {[%clk 0:00:02]}  Qg7 {[%clk 0:00:13]} 56. Kf5 {[%clk 0:00:03]}  Qg6+ {[%clk 0:00:14]} 0-1


[Site "https://www.chess.com"]

[Event "Titled Tuesday Blitz November 01 Early 2022"]
[White "Gabrielian, Artur"]
[Black "Schekachikhin, Maksim"]
[WhiteFideId "4131002"]
[BlackFideId "24177830"]
[WhiteElo "2432"]
[BlackElo "2272"]
[Result "1-0"]
[Round "11"]
[TimeControl "180+1"]
[Date "2022.11.01"]
[WhiteClock "0:00:12"]
[BlackClock "0:00:11"]

1. e4 {[%clk 0:03:00]}  e6 {[%clk 0:02:58]} 2. d4 {[%clk 0:03:00]}  d5 {[%clk 0:02:58]} 3. Nc3 {[%clk 0:03:00]}  Bb4 {[%clk 0:02:58]} 4. e5 {[%clk 0:03:01]}  c5 {[%clk 0:02:56]} 5. a3 {[%clk 0:03:01]}  Bxc3+ {[%clk 0:02:56]} 6. bxc3 {[%clk 0:03:01]}  Qc7 {[%clk 0:02:53]} 7. Qg4 {[%clk 0:02:59]}  f6 {[%clk 0:02:53]} 8. Bb5+ {[%clk 0:02:45]}  Kf8 {[%clk 0:02:53]} 9. Qg3 {[%clk 0:02:42]}  Nc6 {[%clk 0:02:38]} 10. Bxc6 {[%clk 0:02:39]}  bxc6 {[%clk 0:02:34]} 11. exf6 {[%clk 0:02:36]}  Qxg3 {[%clk 0:02:33]} 12. hxg3 {[%clk 0:02:33]}  Nxf6 {[%clk 0:02:32]} 13. f3 {[%clk 0:02:32]}  c4 {[%clk 0:02:22]} 14. g4 {[%clk 0:02:29]}  Ke7 {[%clk 0:02:20]} 15. a4 {[%clk 0:02:20]}  Bd7 {[%clk 0:02:19]} 16. Kd2 {[%clk 0:02:20]}  Kf7 {[%clk 0:02:18]} 17. Ba3 {[%clk 0:02:10]}  h6 {[%clk 0:02:17]} 18. a5 {[%clk 0:02:07]}  Rhb8 {[%clk 0:02:16]} 19. Ne2 {[%clk 0:02:06]}  Rb5 {[%clk 0:02:15]} 20. Bd6 {[%clk 0:02:06]}  Ne8 {[%clk 0:02:14]} 21. Be5 {[%clk 0:02:06]}  c5 {[%clk 0:02:13]} 22. dxc5 {[%clk 0:02:01]}  Rxc5 {[%clk 0:02:13]} 23. Nd4 {[%clk 0:02:02]}  Nf6 {[%clk 0:02:12]} 24. Rab1 {[%clk 0:01:52]}  Bc8 {[%clk 0:02:12]} 25. Ra1 {[%clk 0:01:43]}  Ba6 {[%clk 0:02:06]} 26. Rhe1 {[%clk 0:01:37]}  Re8 {[%clk 0:02:02]} 27. Rab1 {[%clk 0:01:17]}  Nd7 {[%clk 0:02:00]} 28. Bd6 {[%clk 0:01:13]}  Rcc8 {[%clk 0:01:58]} 29. Be5 {[%clk 0:00:58]}  Rc5 {[%clk 0:01:46]} 30. Re3 {[%clk 0:00:52]}  Rxa5 {[%clk 0:01:42]} 31. Rbe1 {[%clk 0:00:53]}  Rc5 {[%clk 0:01:33]} 32. Bd6 {[%clk 0:00:47]}  Rcc8 {[%clk 0:01:30]} 33. Nxe6 {[%clk 0:00:47]}  Nf6 {[%clk 0:01:27]} 34. Nc5 {[%clk 0:00:44]}  Bb5 {[%clk 0:01:24]} 35. Re7+ {[%clk 0:00:44]}  Rxe7 {[%clk 0:01:19]} 36. Rxe7+ {[%clk 0:00:44]}  Kg6 {[%clk 0:01:19]} 37. Ne6 {[%clk 0:00:43]}  Ne8 {[%clk 0:01:16]} 38. Be5 {[%clk 0:00:43]}  h5 {[%clk 0:00:50]} 39. Nf4+ {[%clk 0:00:30]}  Kh6 {[%clk 0:00:50]} 40. Nxh5 {[%clk 0:00:29]}  g6 {[%clk 0:00:45]} 41. Bf4+ {[%clk 0:00:29]}  g5 {[%clk 0:00:44]} 42. Re6+ {[%clk 0:00:25]}  Kh7 {[%clk 0:00:45]} 43. Bxg5 {[%clk 0:00:25]}  a5 {[%clk 0:00:44]} 44. Re7+ {[%clk 0:00:25]}  Kg6 {[%clk 0:00:43]} 45. f4 {[%clk 0:00:22]}  a4 {[%clk 0:00:41]} 46. Ra7 {[%clk 0:00:22]}  Rc7 {[%clk 0:00:34]} 47. Ra5 {[%clk 0:00:21]}  Bd7 {[%clk 0:00:28]} 48. Ra6+ {[%clk 0:00:20]}  Rc6 {[%clk 0:00:25]} 49. Ra8 {[%clk 0:00:18]}  Bxg4 {[%clk 0:00:23]} 50. Rxe8 {[%clk 0:00:14]}  Bxh5 {[%clk 0:00:22]} 51. Rh8 {[%clk 0:00:13]}  Kf5 {[%clk 0:00:11]} 52. Rxh5 {[%clk 0:00:12]}  Kg4 {[%clk 0:00:10]} 53. Rh1 {[%clk 0:00:11]}  a3 {[%clk 0:00:10]} 54. Ra1 {[%clk 0:00:11]}  Ra6 {[%clk 0:00:11]} 55. Ra2 {[%clk 0:00:12]} 1-0


[Site "https://www.chess.com"]

[Event "Titled Tuesday Blitz November 01 Early 2022"]
[White "Garayev, Kanan"]
[Black "Pakleza, Zbigniew"]
[WhiteFideId "13406671"]
[BlackFideId "1119290"]
[WhiteElo "2244"]
[BlackElo "2411"]
[Result "1-0"]
[Round "11"]
[TimeControl "180+1"]
[Date "2022.11.02"]
[WhiteClock "0:00:31"]
[BlackClock "0:00:06"]

1. d4 {[%clk 0:02:06]}  e6 {[%clk 0:03:00]} 2. c3 {[%clk 0:02:06]}  d6 {[%clk 0:03:01]} 3. Nf3 {[%clk 0:02:04]}  c6 {[%clk 0:03:02]} 4. g3 {[%clk 0:02:02]}  b6 {[%clk 0:03:03]} 5. Bg2 {[%clk 0:02:02]}  a6 {[%clk 0:03:04]} 6. O-O {[%clk 0:02:02]}  f6 {[%clk 0:03:04]} 7. e4 {[%clk 0:02:02]}  g6 {[%clk 0:03:04]} 8. e5 {[%clk 0:01:58]}  fxe5 {[%clk 0:02:59]} 9. dxe5 {[%clk 0:01:58]}  d5 {[%clk 0:03:00]} 10. Bg5 {[%clk 0:01:56]}  Be7 {[%clk 0:02:56]} 11. h4 {[%clk 0:01:48]}  Nd7 {[%clk 0:02:50]} 12. Nbd2 {[%clk 0:01:42]}  Bxg5 {[%clk 0:02:45]} 13. Nxg5 {[%clk 0:01:40]}  Qe7 {[%clk 0:02:44]} 14. c4 {[%clk 0:01:35]}  h6 {[%clk 0:02:33]} 15. Ngf3 {[%clk 0:01:35]}  Bb7 {[%clk 0:02:27]} 16. cxd5 {[%clk 0:01:33]}  cxd5 {[%clk 0:02:28]} 17. Nd4 {[%clk 0:01:33]}  g5 {[%clk 0:02:21]} 18. h5 {[%clk 0:01:32]}  Qf7 {[%clk 0:01:11]} 19. Rc1 {[%clk 0:01:28]}  Nc5 {[%clk 0:01:01]} 20. f4 {[%clk 0:01:19]}  gxf4 {[%clk 0:00:51]} 21. Rxf4 {[%clk 0:01:20]}  Qg7 {[%clk 0:00:47]} 22. Rxc5 {[%clk 0:01:11]}  bxc5 {[%clk 0:00:44]} 23. Qa4+ {[%clk 0:01:11]}  Ke7 {[%clk 0:00:24]} 24. Nc6+ {[%clk 0:01:03]}  Kd7 {[%clk 0:00:15]} 25. Nd4+ {[%clk 0:00:53]}  Ke7 {[%clk 0:00:13]} 26. Nc6+ {[%clk 0:00:53]}  Kd7 {[%clk 0:00:13]} 27. Na5+ {[%clk 0:00:54]}  Kc7 {[%clk 0:00:13]} 28. Nxb7 {[%clk 0:00:52]}  Kxb7 {[%clk 0:00:14]} 29. Nc4 {[%clk 0:00:52]}  Qc7 {[%clk 0:00:08]} 30. Rf7 {[%clk 0:00:50]}  Ne7 {[%clk 0:00:05]} 31. Nd6+ {[%clk 0:00:33]}  Kb6 {[%clk 0:00:06]} 32. b4 {[%clk 0:00:30]}  Raf8 {[%clk 0:00:05]} 33. Qa5+ {[%clk 0:00:29]}  Kc6 {[%clk 0:00:05]} 34. Qxc5+ {[%clk 0:00:29]}  Kd7 {[%clk 0:00:05]} 35. Rxe7+ {[%clk 0:00:30]}  Kxe7 {[%clk 0:00:06]} 36. Qxc7# {[%clk 0:00:31]} 1-0


[Site "https://www.chess.com"]

[Event "Titled Tuesday Blitz November 01 Early 2022"]
[White "Gharibyan, Mamikon"]
[Black "Svane, Rasmus"]
[WhiteFideId "13308300"]
[BlackFideId "4657101"]
[WhiteElo "2378"]
[BlackElo "2674"]
[Result "0-1"]
[Round "11"]
[TimeControl "180+1"]
[Date "2022.11.01"]
[WhiteClock "0:01:13"]
[BlackClock "0:02:11"]

1. Nf3 {[%clk 0:02:59]}  d5 {[%clk 0:03:00]} 2. g3 {[%clk 0:02:59]}  Nf6 {[%clk 0:02:54]} 3. Bg2 {[%clk 0:03:00]}  e6 {[%clk 0:02:54]} 4. O-O {[%clk 0:02:59]}  Be7 {[%clk 0:02:55]} 5. d4 {[%clk 0:02:59]}  O-O {[%clk 0:02:55]} 6. c4 {[%clk 0:03:00]}  dxc4 {[%clk 0:02:56]} 7. Qc2 {[%clk 0:02:58]}  a6 {[%clk 0:02:56]} 8. a4 {[%clk 0:02:53]}  Bd7 {[%clk 0:02:56]} 9. Qxc4 {[%clk 0:02:53]}  Bc6 {[%clk 0:02:56]} 10. Bg5 {[%clk 0:02:54]}  Nbd7 {[%clk 0:02:55]} 11. Rd1 {[%clk 0:02:54]}  h6 {[%clk 0:02:55]} 12. Bxf6 {[%clk 0:02:53]}  Nxf6 {[%clk 0:02:56]} 13. Nbd2 {[%clk 0:02:49]}  a5 {[%clk 0:02:55]} 14. Rac1 {[%clk 0:02:46]}  Bb4 {[%clk 0:02:51]} 15. b3 {[%clk 0:02:45]}  Qe7 {[%clk 0:02:45]} 16. Qd3 {[%clk 0:02:33]}  Bxf3 {[%clk 0:02:38]} 17. Nxf3 {[%clk 0:02:32]}  c6 {[%clk 0:02:37]} 18. e4 {[%clk 0:02:24]}  Rfd8 {[%clk 0:02:37]} 19. e5 {[%clk 0:02:24]}  Nd5 {[%clk 0:02:33]} 20. h4 {[%clk 0:02:22]}  c5 {[%clk 0:02:27]} 21. dxc5 {[%clk 0:02:18]}  Nc3 {[%clk 0:02:19]} 22. Rxc3 {[%clk 0:01:29]}  Bxc3 {[%clk 0:02:16]} 23. Qe2 {[%clk 0:01:26]}  Rxd1+ {[%clk 0:02:12]} 24. Qxd1 {[%clk 0:01:27]}  Qxc5 {[%clk 0:02:12]} 25. Qd7 {[%clk 0:01:23]}  Bxe5 {[%clk 0:02:12]} 26. Qxb7 {[%clk 0:01:13]}  Rb8 {[%clk 0:02:11]} 0-1


[Site "https://www.chess.com"]

[Event "Titled Tuesday Blitz November 01 Early 2022"]
[White "Jobava, Baadur"]
[Black "Ozen, Bahadir"]
[WhiteFideId "13601520"]
[BlackFideId "6337058"]
[WhiteElo "2582"]
[BlackElo "2503"]
[Result "1-0"]
[Round "11"]
[TimeControl "180+1"]
[Date "2022.11.01"]
[WhiteClock "0:01:59"]
[BlackClock "0:01:10"]

1. e4 {[%clk 0:03:00]}  g6 {[%clk 0:02:59]} 2. d4 {[%clk 0:03:00]}  Bg7 {[%clk 0:02:59]} 3. c3 {[%clk 0:03:00]}  d6 {[%clk 0:02:59]} 4. Bd3 {[%clk 0:03:00]}  e5 {[%clk 0:02:56]} 5. Nf3 {[%clk 0:03:00]}  Nd7 {[%clk 0:02:55]} 6. O-O {[%clk 0:03:00]}  Ngf6 {[%clk 0:02:56]} 7. Re1 {[%clk 0:03:01]}  O-O {[%clk 0:02:56]} 8. Nbd2 {[%clk 0:03:01]}  b6 {[%clk 0:02:53]} 9. a4 {[%clk 0:02:59]}  a6 {[%clk 0:02:53]} 10. h3 {[%clk 0:02:58]}  Bb7 {[%clk 0:02:52]} 11. d5 {[%clk 0:02:58]}  c6 {[%clk 0:02:51]} 12. dxc6 {[%clk 0:02:57]}  Bxc6 {[%clk 0:02:50]} 13. Nc4 {[%clk 0:02:57]}  Nc5 {[%clk 0:02:49]} 14. Bg5 {[%clk 0:02:57]}  h6 {[%clk 0:02:46]} 15. Bxf6 {[%clk 0:02:57]}  Bxf6 {[%clk 0:02:45]} 16. Bc2 {[%clk 0:02:56]}  Nxe4 {[%clk 0:02:21]} 17. Rxe4 {[%clk 0:02:31]}  d5 {[%clk 0:02:21]} 18. Nfxe5 {[%clk 0:02:28]}  dxe4 {[%clk 0:02:12]} 19. Nxc6 {[%clk 0:02:28]}  Qxd1+ {[%clk 0:02:01]} 20. Rxd1 {[%clk 0:02:27]}  b5 {[%clk 0:02:00]} 21. Nb6 {[%clk 0:02:24]}  Rae8 {[%clk 0:01:47]} 22. Nd7 {[%clk 0:02:24]}  Kg7 {[%clk 0:01:48]} 23. Nxf8 {[%clk 0:02:24]}  Kxf8 {[%clk 0:01:48]} 24. axb5 {[%clk 0:02:17]}  axb5 {[%clk 0:01:49]} 25. Rd5 {[%clk 0:02:17]}  Rc8 {[%clk 0:01:47]} 26. Rd6 {[%clk 0:02:14]}  Bg5 {[%clk 0:01:45]} 27. Bxe4 {[%clk 0:02:13]}  Bc1 {[%clk 0:01:45]} 28. Rd8+ {[%clk 0:02:08]}  Rxd8 {[%clk 0:01:45]} 29. Nxd8 {[%clk 0:02:09]}  Bxb2 {[%clk 0:01:46]} 30. Bd3 {[%clk 0:02:07]}  Ke8 {[%clk 0:01:45]} 31. Nc6 {[%clk 0:02:06]}  Bxc3 {[%clk 0:01:45]} 32. Bxb5 {[%clk 0:02:07]}  Kf8 {[%clk 0:01:45]} 33. Bc4 {[%clk 0:02:07]}  Kg7 {[%clk 0:01:32]} 34. Kf1 {[%clk 0:02:07]}  f5 {[%clk 0:01:31]} 35. Ke2 {[%clk 0:02:07]}  Kf6 {[%clk 0:01:31]} 36. f3 {[%clk 0:02:07]}  h5 {[%clk 0:01:31]} 37. Kd3 {[%clk 0:02:07]}  Be1 {[%clk 0:01:31]} 38. Nd4 {[%clk 0:02:07]}  Bg3 {[%clk 0:01:30]} 39. Ne2 {[%clk 0:02:07]}  Bc7 {[%clk 0:01:30]} 40. Bb3 {[%clk 0:02:07]}  Kg5 {[%clk 0:01:29]} 41. Kc4 {[%clk 0:02:07]}  Kf6 {[%clk 0:01:24]} 42. Kd5 {[%clk 0:02:07]}  g5 {[%clk 0:01:21]} 43. g4 {[%clk 0:02:05]}  fxg4 {[%clk 0:01:21]} 44. fxg4 {[%clk 0:02:05]}  hxg4 {[%clk 0:01:21]} 45. hxg4 {[%clk 0:02:06]}  Bb8 {[%clk 0:01:19]} 46. Nc3 {[%clk 0:02:06]}  Bf4 {[%clk 0:01:19]} 47. Ne4+ {[%clk 0:02:07]}  Kg6 {[%clk 0:01:18]} 48. Ke6 {[%clk 0:02:07]}  Be3 {[%clk 0:01:17]} 49. Bc2 {[%clk 0:02:08]}  Bf4 {[%clk 0:01:17]} 50. Nd6+ {[%clk 0:02:07]}  Kg7 {[%clk 0:01:16]} 51. Nf5+ {[%clk 0:02:08]}  Kg6 {[%clk 0:01:16]} 52. Nd4+ {[%clk 0:02:06]}  Kg7 {[%clk 0:01:14]} 53. Kf5 {[%clk 0:02:07]}  Bc1 {[%clk 0:01:14]} 54. Ne6+ {[%clk 0:02:04]}  Kh6 {[%clk 0:01:14]} 55. Kf6 {[%clk 0:02:04]}  Bb2+ {[%clk 0:01:14]} 56. Kf7 {[%clk 0:02:04]}  Bc3 {[%clk 0:01:12]} 57. Kg8 {[%clk 0:01:59]}  Bb2 {[%clk 0:01:10]} 58. Nd8 {[%clk 0:01:59]} 1-0


[Site "https://www.chess.com"]

[Event "Titled Tuesday Blitz November 01 Early 2022"]
[White "Johnson, Ben"]
[Black "Orzech, Dominik"]
[WhiteFideId "2010917"]
[BlackFideId "1115065"]
[WhiteElo "2116"]
[BlackElo "2272"]
[Result "1-0"]
[Round "11"]
[TimeControl "180+1"]
[Date "2022.11.02"]
[WhiteClock "0:00:07"]
[BlackClock "0:00:56"]

1. Nf3 {[%clk 0:03:00]}  Nf6 {[%clk 0:02:57]} 2. c4 {[%clk 0:03:00]}  g6 {[%clk 0:02:58]} 3. b3 {[%clk 0:03:00]}  Bg7 {[%clk 0:02:59]} 4. Bb2 {[%clk 0:03:00]}  O-O {[%clk 0:02:59]} 5. g3 {[%clk 0:03:00]}  c5 {[%clk 0:02:54]} 6. Bg2 {[%clk 0:02:59]}  Nc6 {[%clk 0:02:54]} 7. O-O {[%clk 0:02:59]}  d5 {[%clk 0:02:52]} 8. cxd5 {[%clk 0:02:57]}  Qxd5 {[%clk 0:02:53]} 9. Nc3 {[%clk 0:02:55]}  Qh5 {[%clk 0:02:52]} 10. d3 {[%clk 0:02:21]}  Bh3 {[%clk 0:02:51]} 11. Qc1 {[%clk 0:02:08]}  h6 {[%clk 0:02:45]} 12. Rb1 {[%clk 0:01:44]}  g5 {[%clk 0:02:42]} 13. Ne4 {[%clk 0:01:32]}  b6 {[%clk 0:02:25]} 14. Nxf6+ {[%clk 0:01:29]}  exf6 {[%clk 0:02:23]} 15. Rd1 {[%clk 0:00:59]}  Rac8 {[%clk 0:02:22]} 16. Bxh3 {[%clk 0:00:47]}  Qxh3 {[%clk 0:02:14]} 17. Rd2 {[%clk 0:00:48]}  Rfe8 {[%clk 0:02:12]} 18. Qf1 {[%clk 0:00:45]}  Qf5 {[%clk 0:02:07]} 19. h4 {[%clk 0:00:39]}  Rcd8 {[%clk 0:02:07]} 20. hxg5 {[%clk 0:00:36]}  hxg5 {[%clk 0:02:07]} 21. Kg2 {[%clk 0:00:35]}  Nb4 {[%clk 0:02:05]} 22. Qh1 {[%clk 0:00:28]}  Qd5 {[%clk 0:02:01]} 23. Qh5 {[%clk 0:00:24]}  Re6 {[%clk 0:01:50]} 24. Rh1 {[%clk 0:00:23]}  Rde8 {[%clk 0:01:50]} 25. e4 {[%clk 0:00:19]}  Qb7 {[%clk 0:01:45]} 26. Nxg5 {[%clk 0:00:18]}  Nxa2 {[%clk 0:01:34]} 27. Qh7+ {[%clk 0:00:15]}  Kf8 {[%clk 0:01:33]} 28. Nxe6+ {[%clk 0:00:12]}  Rxe6 {[%clk 0:01:34]} 29. Rh4 {[%clk 0:00:12]}  Nb4 {[%clk 0:01:32]} 30. Rg4 {[%clk 0:00:12]}  f5 {[%clk 0:01:25]} 31. Qxg7+ {[%clk 0:00:11]}  Ke8 {[%clk 0:01:25]} 32. Qg8+ {[%clk 0:00:11]}  Ke7 {[%clk 0:01:25]} 33. Qg5+ {[%clk 0:00:11]}  Ke8 {[%clk 0:01:25]} 34. Qxf5 {[%clk 0:00:10]}  Nc6 {[%clk 0:01:25]} 35. Rg8+ {[%clk 0:00:10]}  Ke7 {[%clk 0:01:25]} 36. Re2 {[%clk 0:00:08]}  Nb4 {[%clk 0:01:24]} 37. Rg7 {[%clk 0:00:08]}  Ke8 {[%clk 0:01:23]} 38. Rh7 {[%clk 0:00:07]}  Nxd3 {[%clk 0:01:22]} 39. Bc3 {[%clk 0:00:07]}  Qd7 {[%clk 0:01:15]} 40. f3 {[%clk 0:00:07]}  b5 {[%clk 0:01:10]} 41. Rh8+ {[%clk 0:00:07]}  Ke7 {[%clk 0:01:10]} 42. Qg5+ {[%clk 0:00:07]}  Kd6 {[%clk 0:01:09]} 43. Rd8 {[%clk 0:00:07]}  c4 {[%clk 0:01:07]} 44. Rxd7+ {[%clk 0:00:07]}  Kxd7 {[%clk 0:01:08]} 45. bxc4 {[%clk 0:00:07]}  bxc4 {[%clk 0:01:08]} 46. Qb5+ {[%clk 0:00:07]}  Rc6 {[%clk 0:01:08]} 47. Qb7+ {[%clk 0:00:07]}  Rc7 {[%clk 0:01:08]} 48. Qb5+ {[%clk 0:00:07]}  Ke7 {[%clk 0:01:09]} 49. e5 {[%clk 0:00:07]}  Ke6 {[%clk 0:01:09]} 50. f4 {[%clk 0:00:08]}  Kf5 {[%clk 0:01:09]} 51. Kf3 {[%clk 0:00:08]}  Nc5 {[%clk 0:01:04]} 52. g4+ {[%clk 0:00:08]}  Kg6 {[%clk 0:01:03]} 53. f5+ {[%clk 0:00:08]}  Kg7 {[%clk 0:01:03]} 54. Rh2 {[%clk 0:00:08]}  Nd3 {[%clk 0:01:01]} 55. Qd5 {[%clk 0:00:08]}  Rc5 {[%clk 0:00:57]} 56. e6+ {[%clk 0:00:08]}  f6 {[%clk 0:00:55]} 57. Qd7+ {[%clk 0:00:08]}  Kg8 {[%clk 0:00:56]} 58. Qf7# {[%clk 0:00:07]} 1-0


[Site "https://www.chess.com"]

[Event "Titled Tuesday Blitz November 01 Early 2022"]
[White "Kirillov, Dmitry"]
[Black "Grover, Sahaj"]
[WhiteFideId "34180572"]
[BlackFideId "5021103"]
[WhiteElo "2095"]
[BlackElo "2432"]
[Result "0-1"]
[Round "11"]
[TimeControl "180+1"]
[Date "2022.11.02"]
[WhiteClock "0:00:03"]
[BlackClock "0:01:19"]

1. e4 {[%clk 0:02:54]}  e5 {[%clk 0:02:58]} 2. Nf3 {[%clk 0:02:54]}  Nc6 {[%clk 0:02:59]} 3. Bc4 {[%clk 0:02:53]}  Nf6 {[%clk 0:02:59]} 4. d3 {[%clk 0:02:54]}  Bc5 {[%clk 0:02:59]} 5. O-O {[%clk 0:02:54]}  O-O {[%clk 0:02:59]} 6. Nbd2 {[%clk 0:02:54]}  d6 {[%clk 0:02:58]} 7. c3 {[%clk 0:02:54]}  a6 {[%clk 0:02:57]} 8. h3 {[%clk 0:02:53]}  h6 {[%clk 0:02:57]} 9. Bb3 {[%clk 0:02:53]}  Re8 {[%clk 0:02:57]} 10. Re1 {[%clk 0:02:53]}  Be6 {[%clk 0:02:58]} 11. Bc2 {[%clk 0:02:53]}  Ba7 {[%clk 0:02:53]} 12. Nf1 {[%clk 0:02:42]}  d5 {[%clk 0:02:52]} 13. Ng3 {[%clk 0:02:43]}  dxe4 {[%clk 0:02:45]} 14. dxe4 {[%clk 0:02:44]}  Qxd1 {[%clk 0:02:45]} 15. Rxd1 {[%clk 0:02:44]}  Rad8 {[%clk 0:02:46]} 16. Bd2 {[%clk 0:02:14]}  Rd6 {[%clk 0:02:42]} 17. Be1 {[%clk 0:02:13]}  Red8 {[%clk 0:02:39]} 18. a3 {[%clk 0:02:05]}  g6 {[%clk 0:02:25]} 19. Rxd6 {[%clk 0:01:45]}  Rxd6 {[%clk 0:02:25]} 20. Rd1 {[%clk 0:01:45]}  Rxd1 {[%clk 0:02:25]} 21. Bxd1 {[%clk 0:01:45]}  h5 {[%clk 0:02:21]} 22. Kf1 {[%clk 0:01:31]}  Ne8 {[%clk 0:02:17]} 23. Ng5 {[%clk 0:01:18]}  Bc4+ {[%clk 0:02:14]} 24. Be2 {[%clk 0:01:18]}  Bb3 {[%clk 0:02:14]} 25. Nf3 {[%clk 0:00:56]}  Nd6 {[%clk 0:02:13]} 26. Nd2 {[%clk 0:00:56]}  Be6 {[%clk 0:02:12]} 27. f3 {[%clk 0:00:54]}  Be3 {[%clk 0:02:09]} 28. Nh1 {[%clk 0:00:45]}  Na5 {[%clk 0:02:04]} 29. Nf2 {[%clk 0:00:36]}  b5 {[%clk 0:01:55]} 30. Nd1 {[%clk 0:00:34]}  Bf4 {[%clk 0:01:55]} 31. b4 {[%clk 0:00:23]}  Nac4 {[%clk 0:01:53]} 32. Nxc4 {[%clk 0:00:22]}  Nxc4 {[%clk 0:01:53]} 33. Bf2 {[%clk 0:00:05]}  Nxa3 {[%clk 0:01:48]} 34. h4 {[%clk 0:00:05]}  Nb1 {[%clk 0:01:45]} 35. g3 {[%clk 0:00:04]}  Bd2 {[%clk 0:01:45]} 36. Be1 {[%clk 0:00:05]}  Bc1 {[%clk 0:01:44]} 37. Kf2 {[%clk 0:00:02]}  Bb3 {[%clk 0:01:43]} 38. Ne3 {[%clk 0:00:02]}  c6 {[%clk 0:01:43]} 39. Nd1 {[%clk 0:00:02]}  Na3 {[%clk 0:01:37]} 40. Ne3 {[%clk 0:00:02]}  Kf8 {[%clk 0:01:35]} 41. Nd1 {[%clk 0:00:01]}  Ke7 {[%clk 0:01:35]} 42. Ne3 {[%clk 0:00:02]}  Ke6 {[%clk 0:01:35]} 43. f4 {[%clk 0:00:02]}  exf4 {[%clk 0:01:32]} 44. gxf4 {[%clk 0:00:03]}  Nc2 {[%clk 0:01:31]} 45. Nxc2 {[%clk 0:00:03]}  Bxc2 {[%clk 0:01:32]} 46. Kf3 {[%clk 0:00:02]}  Bb2 {[%clk 0:01:31]} 47. Bd2 {[%clk 0:00:02]}  Bb1 {[%clk 0:01:30]} 48. Ke3 {[%clk 0:00:02]}  Bc2 {[%clk 0:01:28]} 49. f5+ {[%clk 0:00:03]}  Ke5 {[%clk 0:01:26]} 50. Kf3 {[%clk 0:00:01]}  Bxe4+ {[%clk 0:01:24]} 51. Ke3 {[%clk 0:00:01]}  Bxf5 {[%clk 0:01:23]} 52. Bf3 {[%clk 0:00:02]}  Bd7 {[%clk 0:01:23]} 53. Kd3 {[%clk 0:00:03]}  Bf5+ {[%clk 0:01:23]} 54. Ke3 {[%clk 0:00:03]}  Kd6 {[%clk 0:01:19]} 55. Kd4 {[%clk 0:00:02]}  f6 {[%clk 0:01:17]} 56. Bf4+ {[%clk 0:00:02]}  Kd7 {[%clk 0:01:17]} 57. Bg3 {[%clk 0:00:01]}  Bc1 {[%clk 0:01:16]} 58. Be2 {[%clk 0:00:01]}  Bh6 {[%clk 0:01:13]} 59. Bf3 {[%clk 0:00:01]}  Bf8 {[%clk 0:01:13]} 60. Ke3 {[%clk 0:00:01]}  Bd6 {[%clk 0:01:14]} 61. Bf2 {[%clk 0:00:01]}  Be5 {[%clk 0:01:14]} 62. Kd2 {[%clk 0:00:01]}  Bf4+ {[%clk 0:01:14]} 63. Ke2 {[%clk 0:00:01]}  Bc7 {[%clk 0:01:14]} 64. Kd2 {[%clk 0:00:02]}  a5 {[%clk 0:01:14]} 65. bxa5 {[%clk 0:00:02]}  Bxa5 {[%clk 0:01:15]} 66. Bd4 {[%clk 0:00:02]}  Bd8 {[%clk 0:01:15]} 67. Ke3 {[%clk 0:00:03]}  Kd6 {[%clk 0:01:16]} 68. Kd2 {[%clk 0:00:02]}  c5 {[%clk 0:01:16]} 69. Bf2 {[%clk 0:00:03]}  Bc7 {[%clk 0:01:16]} 70. Bg3+ {[%clk 0:00:03]}  Kd7 {[%clk 0:01:16]} 71. Bf2 {[%clk 0:00:03]}  Bf4+ {[%clk 0:01:17]} 72. Kd1 {[%clk 0:00:04]}  Kd6 {[%clk 0:01:18]} 73. Bg2 {[%clk 0:00:03]}  b4 {[%clk 0:01:18]} 74. cxb4 {[%clk 0:00:02]}  cxb4 {[%clk 0:01:19]} 75. Bd4 {[%clk 0:00:01]}  Be5 {[%clk 0:01:18]} 76. Be3 {[%clk 0:00:02]}  b3 {[%clk 0:01:19]} 77. Kc1 {[%clk 0:00:03]}  b2+ {[%clk 0:01:19]} 0-1


[Site "https://www.chess.com"]